[Event "*** Titled Tuesday Blitz"]
[Site "Chess.com"]
[Date "2021.03.30"]
[Round "9"]
[White "Pikachess999"]
[Black "LileKoridze"]
[Result "1/2-1/2"]
[WhiteElo "2363"]
[BlackElo "2490"]
[TimeControl "180+1"]
[EndTime "11:45:58 PDT"]
[Termination "Game drawn by repetition"]

1. e4 {[%clk 0:03:00.9]} 1... c5 {[%clk 0:02:59.5]} 2. a3 {[%clk 0:03:00.9]}
2... d6 {[%clk 0:02:59.2]} 3. b4 {[%clk 0:03:01]} 3... cxb4 {[%clk 0:02:58]} 4.
axb4 {[%clk 0:03:01.9]} 4... a6 {[%clk 0:02:57.2]} 5. Nc3 {[%clk 0:02:55.6]}
5... Nc6 {[%clk 0:02:55.5]} 6. b5 {[%clk 0:02:55.2]} 6... Nb8 {[%clk 0:02:53.5]}
7. Nf3 {[%clk 0:02:54.6]} 7... e5 {[%clk 0:02:52.7]} 8. d4 {[%clk 0:02:54.2]}
8... exd4 {[%clk 0:02:50.9]} 9. Nxd4 {[%clk 0:02:55.1]} 9... Nf6 {[%clk
0:02:50.6]} 10. Be3 {[%clk 0:02:50.7]} 10... Be7 {[%clk 0:02:50.9]} 11. f3
{[%clk 0:02:49.2]} 11... O-O {[%clk 0:02:48.2]} 12. Be2 {[%clk 0:02:46.5]} 12...
Nbd7 {[%clk 0:02:43]} 13. O-O {[%clk 0:02:46.4]} 13... Ne5 {[%clk 0:02:36.2]}
14. Qd2 {[%clk 0:02:38.9]} 14... Be6 {[%clk 0:02:21.8]} 15. Nxe6 {[%clk
0:02:30.9]} 15... fxe6 {[%clk 0:02:21.7]} 16. bxa6 {[%clk 0:02:31.8]} 16... bxa6
{[%clk 0:02:21.7]} 17. Rxa6 {[%clk 0:02:31]} 17... Qc7 {[%clk 0:02:21.3]} 18.
Rfa1 {[%clk 0:02:24.5]} 18... Rxa6 {[%clk 0:02:19.9]} 19. Rxa6 {[%clk
0:02:18.1]} 19... Rc8 {[%clk 0:02:20]} 20. Bd4 {[%clk 0:02:14.2]} 20... Nc4
{[%clk 0:02:19.1]} 21. Qd3 {[%clk 0:01:08.1]} 21... Qb7 {[%clk 0:02:07.7]} 22.
Ra7 {[%clk 0:01:05.1]} 22... Qb4 {[%clk 0:01:47.6]} 23. Rxe7 {[%clk 0:01:01.4]}
23... Nb2 {[%clk 0:01:47.1]} 24. Qe3 {[%clk 0:00:33.6]} 24... e5 {[%clk
0:01:47.2]} 25. Nd5 {[%clk 0:00:15.7]} 25... Nxd5 {[%clk 0:01:33.6]} 26. exd5
{[%clk 0:00:16.6]} 26... Qxd4 {[%clk 0:01:22.7]} 27. Qxd4 {[%clk 0:00:16.7]}
27... exd4 {[%clk 0:01:23.2]} 28. Bd3 {[%clk 0:00:17.3]} 28... Nxd3 {[%clk
0:01:19.6]} 29. cxd3 {[%clk 0:00:18.2]} 29... Rc5 {[%clk 0:01:20]} 30. Kf2
{[%clk 0:00:15.2]} 30... Rxd5 {[%clk 0:01:20.2]} 31. Re4 {[%clk 0:00:15.2]}
31... Kf7 {[%clk 0:01:19.9]} 32. f4 {[%clk 0:00:14.3]} 32... Kf6 {[%clk
0:01:19.9]} 33. Kf3 {[%clk 0:00:14.8]} 33... h5 {[%clk 0:01:15.2]} 34. g3 {[%clk
0:00:14.5]} 34... g5 {[%clk 0:01:14.6]} 35. h3 {[%clk 0:00:13.7]} 35... gxf4
{[%clk 0:01:10.6]} 36. gxf4 {[%clk 0:00:14.6]} 36... Kf5 {[%clk 0:01:10.8]} 37.
Kg3 {[%clk 0:00:11.7]} 37... Kf6 {[%clk 0:01:09.2]} 38. Kf3 {[%clk 0:00:12]}
38... Kg6 {[%clk 0:01:09.2]} 39. Kg3 {[%clk 0:00:11]} 39... Kf6 {[%clk
0:01:09.5]} 40. Kf3 {[%clk 0:00:11.4]} 1/2-1/2

[Event "*** Titled Tuesday Blitz"]
[Site "Chess.com"]
[Date "2021.03.30"]
[Round "9"]
[White "zurzan"]
[Black "DonPreuss"]
[Result "1-0"]
[WhiteElo "1993"]
[BlackElo "2255"]
[TimeControl "180+1"]
[EndTime "11:46:03 PDT"]
[Termination "zurzan won on time"]

1. f4 {[%clk 0:03:00.9]} 1... e5 {[%clk 0:02:52.4]} 2. fxe5 {[%clk 0:03:00.7]}
2... d6 {[%clk 0:02:51.1]} 3. exd6 {[%clk 0:03:01.6]} 3... Bxd6 {[%clk
0:02:51.3]} 4. Nf3 {[%clk 0:03:02.5]} 4... g5 {[%clk 0:02:51.1]} 5. g3 {[%clk
0:03:02.4]} 5... g4 {[%clk 0:02:47.1]} 6. Nh4 {[%clk 0:03:02.5]} 6... Ne7 {[%clk
0:02:47.4]} 7. d4 {[%clk 0:03:00.8]} 7... Ng6 {[%clk 0:02:47.1]} 8. Nxg6 {[%clk
0:02:59.1]} 8... hxg6 {[%clk 0:02:47.1]} 9. Qd3 {[%clk 0:02:58.5]} 9... Nc6
{[%clk 0:02:34.8]} 10. c3 {[%clk 0:02:57.8]} 10... Qe7 {[%clk 0:01:57.2]} 11. e4
{[%clk 0:02:54.7]} 11... Bf5 {[%clk 0:01:40.3]} 12. Bg2 {[%clk 0:02:54.4]} 12...
O-O-O {[%clk 0:01:38.2]} 13. O-O {[%clk 0:02:53]} 13... Be6 {[%clk 0:01:30.5]}
14. Bf4 {[%clk 0:02:48.6]} 14... Bxf4 {[%clk 0:01:27.1]} 15. Rxf4 {[%clk
0:02:47.5]} 15... Ne5 {[%clk 0:01:25.7]} 16. Qb5 {[%clk 0:02:46.3]} 16... Nf3+
{[%clk 0:01:22.2]} 17. Bxf3 {[%clk 0:02:45.6]} 17... gxf3 {[%clk 0:01:23.1]} 18.
Rxf3 {[%clk 0:02:44.8]} 18... Rh3 {[%clk 0:01:09.7]} 19. Rf2 {[%clk 0:02:41.7]}
19... a6 {[%clk 0:00:51.7]} 20. Qf1 {[%clk 0:02:27]} 20... Rdh8 {[%clk
0:00:49.6]} 21. Nd2 {[%clk 0:02:19.3]} 21... f5 {[%clk 0:00:43.2]} 22. Re1
{[%clk 0:02:15.6]} 22... Qd7 {[%clk 0:00:40.1]} 23. d5 {[%clk 0:02:09.3]} 23...
Bf7 {[%clk 0:00:37.6]} 24. c4 {[%clk 0:02:04.3]} 24... Kb8 {[%clk 0:00:34.8]}
25. e5 {[%clk 0:02:03.2]} 25... Bxd5 {[%clk 0:00:30.9]} 26. cxd5 {[%clk
0:02:01.4]} 26... Qxd5 {[%clk 0:00:31.8]} 27. e6 {[%clk 0:01:52.6]} 27... Rxg3+
{[%clk 0:00:30.6]} 28. Rg2 {[%clk 0:01:49.4]} 28... Qd4+ {[%clk 0:00:21.1]} 29.
Qf2 {[%clk 0:01:46.6]} 29... Rxg2+ {[%clk 0:00:21.3]} 30. Kxg2 {[%clk
0:01:46.7]} 30... Qg4+ {[%clk 0:00:19.8]} 31. Qg3 {[%clk 0:01:45.7]} 31... Qb4
{[%clk 0:00:19.5]} 32. Re2 {[%clk 0:01:38.6]} 32... g5 {[%clk 0:00:15.7]} 33. e7
{[%clk 0:01:37.1]} 33... Re8 {[%clk 0:00:14.5]} 34. Qxg5 {[%clk 0:01:32.4]}
34... Qc5 {[%clk 0:00:12.1]} 35. Qe3 {[%clk 0:01:29.8]} 35... Qd5+ {[%clk
0:00:11.4]} 36. Nf3 {[%clk 0:01:28.8]} 36... Qxa2 {[%clk 0:00:10.9]} 37. b4
{[%clk 0:01:27.6]} 37... Qd5 {[%clk 0:00:10.6]} 38. Qe5 {[%clk 0:01:22.9]} 38...
Qd3 {[%clk 0:00:08.3]} 39. Rd2 {[%clk 0:01:17.1]} 39... Rg8+ {[%clk 0:00:05.5]}
40. Kf2 {[%clk 0:01:15.2]} 1-0

[Event "*** Titled Tuesday Blitz"]
[Site "Chess.com"]
[Date "2021.03.30"]
[Round "9"]
[White "KacperPolOK"]
[Black "grandcoach"]
[Result "1-0"]
[WhiteElo "2436"]
[BlackElo "2263"]
[TimeControl "180+1"]
[EndTime "11:46:04 PDT"]
[Termination "KacperPolOK won on time"]

1. e4 {[%clk 0:02:54.9]} 1... c5 {[%clk 0:02:59.2]} 2. Nc3 {[%clk 0:02:54.9]}
2... Nc6 {[%clk 0:02:59]} 3. Bb5 {[%clk 0:02:54.6]} 3... Nd4 {[%clk 0:02:46.2]}
4. Bc4 {[%clk 0:02:54.5]} 4... g6 {[%clk 0:02:42.8]} 5. Nf3 {[%clk 0:02:54]}
5... Bg7 {[%clk 0:02:43.3]} 6. Nxd4 {[%clk 0:02:48.9]} 6... cxd4 {[%clk
0:02:42.8]} 7. Qf3 {[%clk 0:02:48.9]} 7... Nf6 {[%clk 0:02:34.6]} 8. Ne2 {[%clk
0:02:44.8]} 8... d5 {[%clk 0:02:27.8]} 9. exd5 {[%clk 0:02:38.6]} 9... Bg4
{[%clk 0:02:16.7]} 10. Bb5+ {[%clk 0:02:37.1]} 10... Kf8 {[%clk 0:02:16.3]} 11.
Qb3 {[%clk 0:02:30.7]} 11... Nxd5 {[%clk 0:02:09.1]} 12. h3 {[%clk 0:02:26.5]}
12... Be6 {[%clk 0:01:43.9]} 13. Bc4 {[%clk 0:02:07.5]} 13... Rc8 {[%clk
0:01:34.9]} 14. d3 {[%clk 0:01:57.6]} 14... a6 {[%clk 0:01:04.1]} 15. O-O {[%clk
0:01:53.9]} 15... b5 {[%clk 0:01:03.6]} 16. Bxd5 {[%clk 0:01:54.2]} 16... Bxd5
{[%clk 0:01:03.2]} 17. Qb4 {[%clk 0:01:52.1]} 17... Rxc2 {[%clk 0:00:59.5]} 18.
Nf4 {[%clk 0:01:51.6]} 18... Bb7 {[%clk 0:00:50.1]} 19. Re1 {[%clk 0:01:35.6]}
19... h5 {[%clk 0:00:31.5]} 20. Bd2 {[%clk 0:01:29.3]} 20... g5 {[%clk 0:00:30]}
21. Ne2 {[%clk 0:01:21.8]} 21... a5 {[%clk 0:00:20.4]} 22. Qxb5 {[%clk
0:01:18.6]} 22... Bc6 {[%clk 0:00:19.9]} 23. Qxa5 {[%clk 0:01:06.3]} 23... Qxa5
{[%clk 0:00:10.1]} 24. Bxa5 {[%clk 0:01:06.1]} 24... g4 {[%clk 0:00:09.7]} 25.
Rac1 {[%clk 0:01:02.5]} 25... Rxc1 {[%clk 0:00:07.7]} 26. Rxc1 {[%clk
0:01:03.4]} 26... Bd7 {[%clk 0:00:04.3]} 27. Rc7 {[%clk 0:01:01.6]} 27... Ke8
{[%clk 0:00:03.8]} 28. Ra7 {[%clk 0:00:56.3]} 28... Bc6 {[%clk 0:00:02.4]} 29.
h4 {[%clk 0:00:54]} 29... Be5 {[%clk 0:00:01.5]} 30. Bc7 {[%clk 0:00:51.9]} 1-0

[Event "*** Titled Tuesday Blitz"]
[Site "Chess.com"]
[Date "2021.03.30"]
[Round "9"]
[White "XDPS"]
[Black "profofchess"]
[Result "1-0"]
[WhiteElo "2754"]
[BlackElo "2442"]
[TimeControl "180+1"]
[EndTime "11:46:08 PDT"]
[Termination "XDPS won by resignation"]

1. e4 {[%clk 0:03:00.9]} 1... e6 {[%clk 0:03:00.3]} 2. b3 {[%clk 0:02:57.7]}
2... d5 {[%clk 0:03:01.2]} 3. Bb2 {[%clk 0:02:58.6]} 3... Nf6 {[%clk 0:02:59.8]}
4. e5 {[%clk 0:02:58.6]} 4... Nfd7 {[%clk 0:02:59.7]} 5. f4 {[%clk 0:02:59.3]}
5... c5 {[%clk 0:02:59.1]} 6. Nf3 {[%clk 0:02:59.8]} 6... Nc6 {[%clk 0:02:59.5]}
7. c3 {[%clk 0:03:00.4]} 7... a6 {[%clk 0:02:42.1]} 8. Na3 {[%clk 0:02:57.6]}
8... b5 {[%clk 0:02:40.3]} 9. Nc2 {[%clk 0:02:58.3]} 9... c4 {[%clk 0:02:39.9]}
10. h4 {[%clk 0:02:55.3]} 10... Nc5 {[%clk 0:02:35.9]} 11. Ncd4 {[%clk
0:02:50.7]} 11... Bd7 {[%clk 0:02:26.4]} 12. Nxc6 {[%clk 0:02:47.3]} 12... Bxc6
{[%clk 0:02:26.1]} 13. Nd4 {[%clk 0:02:47.7]} 13... Rc8 {[%clk 0:02:21.8]} 14.
h5 {[%clk 0:02:46.6]} 14... h6 {[%clk 0:02:17]} 15. Qg4 {[%clk 0:02:46.3]} 15...
Ne4 {[%clk 0:01:48.6]} 16. d3 {[%clk 0:02:36.2]} 16... cxd3 {[%clk 0:01:34.6]}
17. Bxd3 {[%clk 0:02:37.1]} 17... b4 {[%clk 0:01:27.6]} 18. c4 {[%clk
0:01:56.3]} 18... dxc4 {[%clk 0:00:51.3]} 19. Bxc4 {[%clk 0:01:51.8]} 19... Nc3
{[%clk 0:00:51.5]} 20. Nxe6 {[%clk 0:01:44.9]} 20... Qb6 {[%clk 0:00:23]} 21.
Nxf8 {[%clk 0:01:07.9]} 21... Qe3+ {[%clk 0:00:22.4]} 22. Kf1 {[%clk 0:01:08.3]}
22... Rxf8 {[%clk 0:00:09.6]} 23. Qxc8+ {[%clk 0:01:07.9]} 23... Ke7 {[%clk
0:00:10]} 24. Qc7+ {[%clk 0:01:05.7]} 24... Bd7 {[%clk 0:00:10.1]} 25. Qd6+
{[%clk 0:00:50.6]} 25... Ke8 {[%clk 0:00:09.3]} 26. Qb8+ {[%clk 0:00:40]} 26...
Ke7 {[%clk 0:00:09.2]} 27. Qxb4+ {[%clk 0:00:40.4]} 27... Ke8 {[%clk 0:00:09.3]}
28. Qb8+ {[%clk 0:00:39.7]} 28... Ke7 {[%clk 0:00:09.3]} 29. Ba3+ {[%clk
0:00:40.3]} 1-0

[Event "*** Titled Tuesday Blitz"]
[Site "Chess.com"]
[Date "2021.03.30"]
[Round "9"]
[White "ErikRonka"]
[Black "korbul"]
[Result "0-1"]
[WhiteElo "2412"]
[BlackElo "2581"]
[TimeControl "180+1"]
[EndTime "11:46:11 PDT"]
[Termination "korbul won by resignation"]

1. e4 {[%clk 0:03:00.9]} 1... c5 {[%clk 0:02:59.1]} 2. Nf3 {[%clk 0:03:01.1]}
2... e6 {[%clk 0:02:59]} 3. d4 {[%clk 0:03:01.1]} 3... cxd4 {[%clk 0:02:58.8]}
4. Nxd4 {[%clk 0:03:02]} 4... Nf6 {[%clk 0:02:58.8]} 5. Nc3 {[%clk 0:03:02]}
5... d6 {[%clk 0:02:58.6]} 6. Be3 {[%clk 0:02:56.9]} 6... a6 {[%clk 0:02:58.2]}
7. f3 {[%clk 0:02:56.9]} 7... b5 {[%clk 0:02:57.6]} 8. Qd2 {[%clk 0:02:56.9]}
8... Bb7 {[%clk 0:02:57.5]} 9. g4 {[%clk 0:02:56.1]} 9... Nc6 {[%clk 0:02:57.2]}
10. g5 {[%clk 0:02:53.4]} 10... Nd7 {[%clk 0:02:56.1]} 11. Nxc6 {[%clk
0:02:53.9]} 11... Bxc6 {[%clk 0:02:55.7]} 12. O-O-O {[%clk 0:02:49.5]} 12... Rc8
{[%clk 0:02:51.8]} 13. Ne2 {[%clk 0:02:49.2]} 13... Ne5 {[%clk 0:02:43.7]} 14.
Nd4 {[%clk 0:02:47.8]} 14... Nxf3 {[%clk 0:02:42.3]} 15. Nxf3 {[%clk 0:02:32.3]}
15... Bxe4 {[%clk 0:02:41.4]} 16. Bg2 {[%clk 0:01:38.4]} 16... Rxc2+ {[%clk
0:02:39.2]} 17. Qxc2 {[%clk 0:01:39.3]} 17... Bxc2 {[%clk 0:02:39.1]} 18. Kxc2
{[%clk 0:01:40.2]} 18... Be7 {[%clk 0:02:35.7]} 19. h4 {[%clk 0:01:34.4]} 19...
O-O {[%clk 0:02:34.9]} 20. Nd4 {[%clk 0:01:31.1]} 20... d5 {[%clk 0:02:33.4]}
21. Kb1 {[%clk 0:01:30.3]} 21... Bd6 {[%clk 0:02:27]} 22. h5 {[%clk 0:01:25.7]}
22... Qd7 {[%clk 0:02:25.9]} 23. h6 {[%clk 0:01:25.2]} 23... g6 {[%clk
0:02:22.9]} 24. Bh3 {[%clk 0:01:17]} 24... Re8 {[%clk 0:02:08.2]} 25. Nb3 {[%clk
0:01:09.7]} 25... Qd8 {[%clk 0:01:56.9]} 26. Rc1 {[%clk 0:00:46]} 26... a5
{[%clk 0:01:54.8]} 27. Rhf1 {[%clk 0:00:40.8]} 27... a4 {[%clk 0:01:48.8]} 28.
Nc5 {[%clk 0:00:38.9]} 28... a3 {[%clk 0:01:30]} 29. Nb7 {[%clk 0:00:36.4]}
29... Qe7 {[%clk 0:01:29.4]} 30. Nxd6 {[%clk 0:00:35.5]} 30... Qxd6 {[%clk
0:01:28.9]} 31. Rf2 {[%clk 0:00:26.2]} 31... Qg3 {[%clk 0:01:24]} 32. Bxe6
{[%clk 0:00:08.2]} 32... fxe6 {[%clk 0:01:14.3]} 33. Bd4 {[%clk 0:00:07.4]}
33... Qd3+ {[%clk 0:01:12.1]} 34. Ka1 {[%clk 0:00:07.2]} 34... Qxd4 {[%clk
0:01:12]} 35. Rcf1 {[%clk 0:00:04.9]} 35... axb2+ {[%clk 0:01:08.1]} 36. Kb1
{[%clk 0:00:05]} 36... Rc8 {[%clk 0:01:06.1]} 37. Rf7 {[%clk 0:00:04.1]} 37...
Rc1+ {[%clk 0:01:05.1]} 38. Rxc1 {[%clk 0:00:02.7]} 38... bxc1=Q+ {[%clk
0:01:05.1]} 39. Kxc1 {[%clk 0:00:02.9]} 39... Kxf7 {[%clk 0:01:05.3]} 0-1

[Event "*** Titled Tuesday Blitz"]
[Site "Chess.com"]
[Date "2021.03.30"]
[Round "9"]
[White "Nesty_Javi_Chess"]
[Black "VladDobrov"]
[Result "0-1"]
[WhiteElo "2618"]
[BlackElo "2761"]
[TimeControl "180+1"]
[EndTime "11:46:13 PDT"]
[Termination "VladDobrov won on time"]

1. e4 {[%clk 0:02:46.7]} 1... c5 {[%clk 0:02:59.6]} 2. Nf3 {[%clk 0:02:46.4]}
2... Nc6 {[%clk 0:02:59.9]} 3. d4 {[%clk 0:02:45.8]} 3... cxd4 {[%clk
0:03:00.2]} 4. Nxd4 {[%clk 0:02:46.7]} 4... Qb6 {[%clk 0:03:00.5]} 5. Nb3 {[%clk
0:02:46.3]} 5... Nf6 {[%clk 0:03:00.4]} 6. Nc3 {[%clk 0:02:45.6]} 6... e6 {[%clk
0:03:00.7]} 7. Be3 {[%clk 0:02:45.3]} 7... Qc7 {[%clk 0:03:00.3]} 8. Bd3 {[%clk
0:02:45.3]} 8... h5 {[%clk 0:02:59.2]} 9. f4 {[%clk 0:02:44.6]} 9... d6 {[%clk
0:02:55.6]} 10. Qe2 {[%clk 0:02:41.5]} 10... a6 {[%clk 0:02:55.9]} 11. O-O-O
{[%clk 0:02:38.2]} 11... b5 {[%clk 0:02:56.2]} 12. Kb1 {[%clk 0:02:35]} 12...
Bb7 {[%clk 0:02:55.8]} 13. Rhe1 {[%clk 0:02:29.9]} 13... Be7 {[%clk 0:02:52.7]}
14. h3 {[%clk 0:02:23.2]} 14... h4 {[%clk 0:02:52.4]} 15. Bf2 {[%clk 0:02:21.5]}
15... Rc8 {[%clk 0:02:47.3]} 16. e5 {[%clk 0:01:45.3]} 16... dxe5 {[%clk
0:02:47.1]} 17. fxe5 {[%clk 0:01:46.2]} 17... Nd7 {[%clk 0:02:47.2]} 18. Bg1
{[%clk 0:01:35.2]} 18... Qxe5 {[%clk 0:02:23.4]} 19. Qd2 {[%clk 0:00:28.3]}
19... Qc7 {[%clk 0:01:45.5]} 20. Qf2 {[%clk 0:00:26.2]} 20... Nf6 {[%clk
0:01:39.4]} 21. Ne4 {[%clk 0:00:25.5]} 21... Nb4 {[%clk 0:01:29.9]} 22. Nxf6+
{[%clk 0:00:21.5]} 22... Bxf6 {[%clk 0:01:30.8]} 23. c3 {[%clk 0:00:16.4]} 23...
Nxd3 {[%clk 0:01:28.6]} 24. Rxd3 {[%clk 0:00:17.3]} 24... O-O {[%clk 0:01:24.4]}
25. Nd4 {[%clk 0:00:17.6]} 25... Rfd8 {[%clk 0:01:23.6]} 26. Rdd1 {[%clk
0:00:15.2]} 26... Bd5 {[%clk 0:01:21.1]} 27. Qe3 {[%clk 0:00:11.9]} 27... Qa5
{[%clk 0:01:16.9]} 28. a3 {[%clk 0:00:09.4]} 28... Qa4 {[%clk 0:01:17.2]} 29.
Bf2 {[%clk 0:00:08.7]} 29... a5 {[%clk 0:01:05.7]} 30. Qf4 {[%clk 0:00:05.2]}
30... b4 {[%clk 0:01:03.6]} 31. cxb4 {[%clk 0:00:05.5]} 31... axb4 {[%clk
0:01:02.1]} 32. Bxh4 {[%clk 0:00:05.6]} 32... Bxh4 {[%clk 0:00:57.8]} 33. Qxh4
{[%clk 0:00:06.5]} 33... bxa3 {[%clk 0:00:57.6]} 34. Rd3 {[%clk 0:00:05.7]}
34... axb2 {[%clk 0:00:54.7]} 0-1

[Event "*** Titled Tuesday Blitz"]
[Site "Chess.com"]
[Date "2021.03.30"]
[Round "9"]
[White "BozeKat"]
[Black "DonBroca"]
[Result "1-0"]
[WhiteElo "2039"]
[BlackElo "2220"]
[TimeControl "180+1"]
[EndTime "11:46:14 PDT"]
[Termination "BozeKat won on time"]

1. Nf3 {[%clk 0:03:00.9]} 1... Nf6 {[%clk 0:02:56]} 2. d4 {[%clk 0:03:00.6]}
2... e6 {[%clk 0:02:50.8]} 3. c4 {[%clk 0:03:00.3]} 3... b6 {[%clk 0:02:49.8]}
4. e3 {[%clk 0:02:59.9]} 4... Bb7 {[%clk 0:02:50.1]} 5. Be2 {[%clk 0:02:59.2]}
5... Be7 {[%clk 0:02:50.6]} 6. O-O {[%clk 0:02:59.5]} 6... O-O {[%clk
0:02:51.2]} 7. Nc3 {[%clk 0:02:59.9]} 7... d5 {[%clk 0:02:50.4]} 8. Qc2 {[%clk
0:02:53.9]} 8... Nbd7 {[%clk 0:02:45.4]} 9. b3 {[%clk 0:02:48]} 9... Rc8 {[%clk
0:02:28.6]} 10. Ne5 {[%clk 0:02:34.4]} 10... c6 {[%clk 0:02:06.4]} 11. f4 {[%clk
0:02:31.5]} 11... Nxe5 {[%clk 0:01:34.7]} 12. fxe5 {[%clk 0:02:31.2]} 12... Nd7
{[%clk 0:01:32.8]} 13. Bd3 {[%clk 0:02:28.2]} 13... f5 {[%clk 0:01:30.2]} 14.
Bd2 {[%clk 0:02:11.9]} 14... Bg5 {[%clk 0:01:00.6]} 15. Rae1 {[%clk 0:02:06]}
15... c5 {[%clk 0:00:49.4]} 16. Nb5 {[%clk 0:01:55.5]} 16... cxd4 {[%clk
0:00:21.3]} 17. Nd6 {[%clk 0:01:41.3]} 17... dxe3 {[%clk 0:00:14.7]} 18. Bxe3
{[%clk 0:01:27.7]} 18... Bxe3+ {[%clk 0:00:13.7]} 19. Rxe3 {[%clk 0:01:28.6]}
19... Rc7 {[%clk 0:00:13.8]} 20. Nxb7 {[%clk 0:01:13.5]} 20... Rxb7 {[%clk
0:00:13.6]} 21. cxd5 {[%clk 0:01:13.9]} 21... exd5 {[%clk 0:00:11.1]} 22. Bxf5
{[%clk 0:01:13]} 22... Nxe5 {[%clk 0:00:11.4]} 23. Be6+ {[%clk 0:01:09.5]} 23...
Nf7 {[%clk 0:00:09.2]} 24. Ref3 {[%clk 0:01:01.8]} 24... d4 {[%clk 0:00:09.1]}
25. Qc4 {[%clk 0:00:58]} 25... Qe7 {[%clk 0:00:08]} 26. Re1 {[%clk 0:00:50.5]}
26... Qc7 {[%clk 0:00:06.9]} 27. Qxd4 {[%clk 0:00:45.6]} 27... Kh8 {[%clk
0:00:06.4]} 28. Bxf7 {[%clk 0:00:42.2]} 28... Qc5 {[%clk 0:00:02.2]} 29. Qxc5
{[%clk 0:00:40.5]} 29... bxc5 {[%clk 0:00:02.5]} 30. Bh5 {[%clk 0:00:39.6]} 1-0

[Event "*** Titled Tuesday Blitz"]
[Site "Chess.com"]
[Date "2021.03.30"]
[Round "9"]
[White "federicosellitti"]
[Black "Gloomy_Wanderer"]
[Result "0-1"]
[WhiteElo "2552"]
[BlackElo "2712"]
[TimeControl "180+1"]
[EndTime "11:46:15 PDT"]
[Termination "Gloomy_Wanderer won by checkmate"]

1. e4 {[%clk 0:03:00.9]} 1... c5 {[%clk 0:02:59.9]} 2. Nc3 {[%clk 0:03:01.2]}
2... a6 {[%clk 0:03:00]} 3. g3 {[%clk 0:03:01.8]} 3... b5 {[%clk 0:03:00.3]} 4.
Bg2 {[%clk 0:03:01.9]} 4... Bb7 {[%clk 0:03:00.8]} 5. d3 {[%clk 0:03:02.5]} 5...
e6 {[%clk 0:03:01.2]} 6. f4 {[%clk 0:03:03]} 6... Nf6 {[%clk 0:03:00.6]} 7. Nf3
{[%clk 0:03:03.1]} 7... d5 {[%clk 0:03:01.1]} 8. e5 {[%clk 0:03:03.8]} 8... Nfd7
{[%clk 0:03:01.5]} 9. O-O {[%clk 0:03:03.8]} 9... Be7 {[%clk 0:03:02]} 10. Qe2
{[%clk 0:03:04.2]} 10... Nc6 {[%clk 0:03:02.1]} 11. f5 {[%clk 0:02:52.1]} 11...
b4 {[%clk 0:02:53.7]} 12. Nxd5 {[%clk 0:02:21.4]} 12... exd5 {[%clk 0:02:48.9]}
13. f6 {[%clk 0:02:20.8]} 13... gxf6 {[%clk 0:02:45.2]} 14. exf6 {[%clk
0:02:20.4]} 14... Nxf6 {[%clk 0:02:45]} 15. Bg5 {[%clk 0:02:19.1]} 15... Qd6
{[%clk 0:01:47.7]} 16. Nh4 {[%clk 0:01:55.6]} 16... Nd4 {[%clk 0:01:37.7]} 17.
Qf2 {[%clk 0:01:55.9]} 17... Ng4 {[%clk 0:00:47.5]} 18. Qxf7+ {[%clk 0:01:37.4]}
18... Kd8 {[%clk 0:00:47.7]} 19. Qg7 {[%clk 0:01:18.5]} 19... Bxg5 {[%clk
0:00:21.9]} 20. Qxh8+ {[%clk 0:01:04.1]} 20... Kc7 {[%clk 0:00:20.2]} 21. Qg7+
{[%clk 0:01:03.7]} 21... Kb6 {[%clk 0:00:16.3]} 22. Qxg5 {[%clk 0:01:01.9]}
22... Ne2+ {[%clk 0:00:16.6]} 23. Kh1 {[%clk 0:00:55.8]} 23... Nxg3+ {[%clk
0:00:17.4]} 24. hxg3 {[%clk 0:00:50.6]} 24... Qxg3 {[%clk 0:00:18.3]} 25. Rf6+
{[%clk 0:00:20.3]} 25... Ka7 {[%clk 0:00:18.4]} 26. Nf3 {[%clk 0:00:18.5]} 26...
Nf2+ {[%clk 0:00:16.4]} 27. Kg1 {[%clk 0:00:17.2]} 27... Nh3+ {[%clk 0:00:17.3]}
28. Kf1 {[%clk 0:00:16.8]} 28... Qf2# {[%clk 0:00:17.4]} 0-1

[Event "*** Titled Tuesday Blitz"]
[Site "Chess.com"]
[Date "2021.03.30"]
[Round "9"]
[White "swimmerchess"]
[Black "BilodeauA"]
[Result "0-1"]
[WhiteElo "2831"]
[BlackElo "2924"]
[TimeControl "180+1"]
[EndTime "11:46:17 PDT"]
[Termination "BilodeauA won by resignation"]

1. e4 {[%clk 0:02:53.4]} 1... e5 {[%clk 0:02:59.9]} 2. Nf3 {[%clk 0:02:53.8]}
2... Nc6 {[%clk 0:02:59.7]} 3. Bb5 {[%clk 0:02:54.4]} 3... a6 {[%clk 0:03:00.1]}
4. Ba4 {[%clk 0:02:54.9]} 4... d6 {[%clk 0:03:00.7]} 5. c3 {[%clk 0:02:54.9]}
5... Bd7 {[%clk 0:03:01.3]} 6. d4 {[%clk 0:02:55.3]} 6... Nge7 {[%clk
0:03:01.9]} 7. O-O {[%clk 0:02:55.5]} 7... Ng6 {[%clk 0:03:02.3]} 8. Re1 {[%clk
0:02:55.8]} 8... Be7 {[%clk 0:03:02.9]} 9. Nbd2 {[%clk 0:02:55.9]} 9... O-O
{[%clk 0:03:03.5]} 10. Nf1 {[%clk 0:02:56.4]} 10... Bg4 {[%clk 0:03:01.9]} 11.
Be3 {[%clk 0:02:50.4]} 11... Bf6 {[%clk 0:03:01.2]} 12. d5 {[%clk 0:02:38.7]}
12... Nb8 {[%clk 0:03:00.3]} 13. h3 {[%clk 0:02:39.1]} 13... Bc8 {[%clk
0:03:00.2]} 14. Ng3 {[%clk 0:02:38.2]} 14... Nh4 {[%clk 0:03:00.6]} 15. Nh5
{[%clk 0:02:06.9]} 15... g6 {[%clk 0:02:50.7]} 16. Nxf6+ {[%clk 0:01:59.8]}
16... Qxf6 {[%clk 0:02:51.6]} 17. Nh2 {[%clk 0:01:52.8]} 17... g5 {[%clk
0:02:22]} 18. Qh5 {[%clk 0:01:38.1]} 18... h6 {[%clk 0:02:06.8]} 19. Ng4 {[%clk
0:00:57.1]} 19... Bxg4 {[%clk 0:01:59.4]} 20. Qxg4 {[%clk 0:00:58]} 20... Qg7
{[%clk 0:01:50.4]} 21. Bc2 {[%clk 0:00:54.8]} 21... f6 {[%clk 0:01:41.9]} 22. g3
{[%clk 0:00:52.4]} 22... Ng6 {[%clk 0:01:42.2]} 23. h4 {[%clk 0:00:53]} 23...
Nd7 {[%clk 0:01:41]} 24. h5 {[%clk 0:00:50.4]} 24... Nh8 {[%clk 0:01:39.7]} 25.
Kh2 {[%clk 0:00:48]} 25... f5 {[%clk 0:01:37.9]} 26. exf5 {[%clk 0:00:46.7]}
26... Nf6 {[%clk 0:01:38.6]} 27. Qf3 {[%clk 0:00:45.8]} 27... Nf7 {[%clk
0:01:36.2]} 28. Bd2 {[%clk 0:00:35]} 28... Rfe8 {[%clk 0:01:33.2]} 29. Be4
{[%clk 0:00:34.5]} 29... Nd8 {[%clk 0:01:28.1]} 30. g4 {[%clk 0:00:33.3]} 30...
a5 {[%clk 0:01:23.6]} 31. a4 {[%clk 0:00:32.8]} 31... Qd7 {[%clk 0:01:16.7]} 32.
b4 {[%clk 0:00:32.1]} 32... axb4 {[%clk 0:01:15.3]} 33. cxb4 {[%clk 0:00:33]}
33... Rxa4 {[%clk 0:01:15.8]} 34. Rxa4 {[%clk 0:00:33.4]} 34... Qxa4 {[%clk
0:01:16.7]} 35. Rc1 {[%clk 0:00:34.1]} 35... Re7 {[%clk 0:01:11.6]} 36. Kg3
{[%clk 0:00:28.4]} 36... Qa2 {[%clk 0:01:08.1]} 37. Rc2 {[%clk 0:00:27.6]} 37...
Qa6 {[%clk 0:01:06]} 38. Bd3 {[%clk 0:00:22.5]} 38... Qa1 {[%clk 0:01:06]} 39.
Rc1 {[%clk 0:00:22.3]} 39... Qa4 {[%clk 0:01:04.3]} 40. Bc2 {[%clk 0:00:20.7]}
40... Qa7 {[%clk 0:00:57]} 41. Bb3 {[%clk 0:00:20.5]} 41... Nf7 {[%clk 0:00:54]}
42. Qc3 {[%clk 0:00:20.1]} 42... Ne4+ {[%clk 0:00:53.3]} 0-1